[Event "***Titled Tuesday 3|2 Blitz"]
[Site "Chess.com"]
[Date "2017.02.07"]
[Round "8"]
[White "kpio91"]
[Black "johnathan113"]
[Result "1-0"]
[WhiteElo "2545"]
[BlackElo "2349"]
[TimeControl "180+2"]
[EndTime "14:57:07 PST"]
[Termination "kpio91 won by checkmate"]

1. e4 {[%clk 0:03:02]} 1... g6 {[%clk 0:03:00.6]} 2. d4 {[%clk 0:02:58.6]} 2...
Nf6 {[%clk 0:03:01.7]} 3. e5 {[%clk 0:02:53.3]} 3... Nh5 {[%clk 0:03:02.7]} 4.
Nf3 {[%clk 0:02:54.7]} 4... d6 {[%clk 0:03:03.7]} 5. exd6 {[%clk 0:02:55]} 5...
exd6 {[%clk 0:03:05]} 6. Bg5 {[%clk 0:02:55.1]} 6... Be7 {[%clk 0:02:56.4]} 7.
Bh6 {[%clk 0:02:45]} 7... Bf6 {[%clk 0:02:49.5]} 8. Be2 {[%clk 0:02:40.3]} 8...
Ng7 {[%clk 0:02:49.9]} 9. h4 {[%clk 0:02:33.7]} 9... Nf5 {[%clk 0:02:47.8]} 10.
Bg5 {[%clk 0:02:33]} 10... h6 {[%clk 0:02:42.2]} 11. Bxf6 {[%clk 0:02:33.4]}
11... Qxf6 {[%clk 0:02:44.1]} 12. Nc3 {[%clk 0:02:34.8]} 12... Nc6 {[%clk
0:02:32.8]} 13. Nd5 {[%clk 0:02:20.9]} 13... Qd8 {[%clk 0:02:33.3]} 14. Qd2
{[%clk 0:02:21.2]} 14... Nce7 {[%clk 0:02:17]} 15. Nf6+ {[%clk 0:02:19.8]} 15...
Kf8 {[%clk 0:02:18.3]} 16. O-O-O {[%clk 0:02:18.6]} 16... d5 {[%clk 0:02:11.3]}
17. g4 {[%clk 0:02:08.3]} 17... Nd6 {[%clk 0:02:11.7]} 18. Bd3 {[%clk
0:01:59.3]} 18... Ne4 {[%clk 0:01:49.4]} 19. Bxe4 {[%clk 0:01:44.3]} 19... dxe4
{[%clk 0:01:51.3]} 20. Ne5 {[%clk 0:01:45.9]} 20... Nc6 {[%clk 0:01:40.4]} 21.
g5 {[%clk 0:01:31.9]} 21... Bf5 {[%clk 0:01:29.3]} 22. Qc3 {[%clk 0:01:15.8]}
22... Ne7 {[%clk 0:01:18.7]} 23. d5 {[%clk 0:01:15.5]} 23... Qd6 {[%clk
0:01:14]} 24. Kb1 {[%clk 0:01:12.5]} 24... Rd8 {[%clk 0:00:36.2]} 25. Nc4 {[%clk
0:01:06.4]} 25... Qa6 {[%clk 0:00:37]} 26. d6 {[%clk 0:00:36.9]} 26... cxd6
{[%clk 0:00:34.8]} 27. Nxe4 {[%clk 0:00:38.1]} 27... Rh7 {[%clk 0:00:23.8]} 28.
Ncxd6 {[%clk 0:00:38]} 28... Bxe4 {[%clk 0:00:20.3]} 29. Nxe4 {[%clk 0:00:36.9]}
29... Rc8 {[%clk 0:00:07.5]} 30. Qb4 {[%clk 0:00:28.8]} 30... Qc6 {[%clk
0:00:07]} 31. Nf6 {[%clk 0:00:25.6]} 31... Qxc2+ {[%clk 0:00:07.2]} 32. Ka1
{[%clk 0:00:27]} 32... Rh8 {[%clk 0:00:06.1]} 33. Rhe1 {[%clk 0:00:27.6]} 33...
Rc7 {[%clk 0:00:04.4]} 34. a3 {[%clk 0:00:14.3]} 34... Kg7 {[%clk 0:00:05.2]}
35. Qd4 {[%clk 0:00:11.7]} 35... Rhc8 {[%clk 0:00:06.2]} 36. Nh5+ {[%clk
0:00:12.1]} 36... Kf8 {[%clk 0:00:05.9]} 37. Qg7+ {[%clk 0:00:13.1]} 37... Ke8
{[%clk 0:00:07.4]} 38. Nf6# {[%clk 0:00:14.3]} 1-0

[Event "***Titled Tuesday 3|2 Blitz"]
[Site "Chess.com"]
[Date "2017.02.07"]
[Round "8"]
[White "MumLookatMeNow"]
[Black "popov_m"]
[Result "0-1"]
[WhiteElo "2252"]
[BlackElo "2350"]
[TimeControl "180+2"]
[EndTime "14:57:11 PST"]
[Termination "popov_m won by resignation"]

1. e4 {[%clk 0:03:02]} 1... e6 {[%clk 0:02:59.7]} 2. d4 {[%clk 0:03:02.6]} 2...
d5 {[%clk 0:03:00.8]} 3. Nc3 {[%clk 0:03:04.1]} 3... Bb4 {[%clk 0:03:01.9]} 4.
e5 {[%clk 0:03:04.4]} 4... Ne7 {[%clk 0:03:01.9]} 5. a3 {[%clk 0:03:05]} 5...
Bxc3+ {[%clk 0:03:03.4]} 6. bxc3 {[%clk 0:03:06.9]} 6... c5 {[%clk 0:03:05]} 7.
Qg4 {[%clk 0:03:06.7]} 7... Qc7 {[%clk 0:03:05.5]} 8. Bd3 {[%clk 0:03:07.4]}
8... cxd4 {[%clk 0:03:04.6]} 9. Ne2 {[%clk 0:03:08.5]} 9... dxc3 {[%clk
0:03:05.7]} 10. Qxg7 {[%clk 0:03:09.4]} 10... Rg8 {[%clk 0:03:07.1]} 11. Qxh7
{[%clk 0:03:10.6]} 11... Qxe5 {[%clk 0:03:08.8]} 12. Bf4 {[%clk 0:03:11]} 12...
Qf6 {[%clk 0:03:07.6]} 13. h4 {[%clk 0:03:08.4]} 13... Nbc6 {[%clk 0:02:48.5]}
14. Bg5 {[%clk 0:03:02]} 14... Qh8 {[%clk 0:02:49.5]} 15. Qxh8 {[%clk
0:03:02.4]} 15... Rxh8 {[%clk 0:02:49.7]} 16. Bf6 {[%clk 0:03:03.5]} 16... Rf8
{[%clk 0:02:28.1]} 17. h5 {[%clk 0:03:03.8]} 17... e5 {[%clk 0:02:24.8]} 18. Bh7
{[%clk 0:02:52]} 18... Bf5 {[%clk 0:02:05.1]} 19. Bxf5 {[%clk 0:02:51.5]} 19...
Nxf5 {[%clk 0:02:06.6]} 20. h6 {[%clk 0:02:52.9]} 20... Nxh6 {[%clk 0:02:08]}
21. Rxh6 {[%clk 0:02:52.2]} 21... Kd7 {[%clk 0:02:08.6]} 22. Nxc3 {[%clk
0:02:53.1]} 22... d4 {[%clk 0:01:58]} 23. Ne4 {[%clk 0:02:48.3]} 23... Rg8
{[%clk 0:01:59.5]} 24. Ng5 {[%clk 0:02:43.3]} 24... Rg6 {[%clk 0:01:49.9]} 25.
Rxg6 {[%clk 0:02:44.2]} 25... fxg6 {[%clk 0:01:51.8]} 26. Kd2 {[%clk 0:02:40.2]}
26... Rf8 {[%clk 0:01:47.4]} 27. Ne4 {[%clk 0:02:41.4]} 27... Ke6 {[%clk
0:01:46.3]} 28. Bg5 {[%clk 0:02:39.4]} 28... Kd5 {[%clk 0:01:44.3]} 29. f3
{[%clk 0:02:40]} 29... a6 {[%clk 0:01:44]} 30. Rb1 {[%clk 0:02:37.6]} 30... b5
{[%clk 0:01:44.4]} 31. Rh1 {[%clk 0:02:30.6]} 31... Na5 {[%clk 0:01:41.1]} 32.
Rh7 {[%clk 0:02:20.5]} 32... Nc4+ {[%clk 0:01:42.2]} 33. Kd3 {[%clk 0:02:20.1]}
33... Nb2+ {[%clk 0:01:22.6]} 34. Ke2 {[%clk 0:02:18.2]} 34... Rc8 {[%clk
0:01:23.2]} 35. Rd7+ {[%clk 0:01:56.9]} 35... Ke6 {[%clk 0:01:23.4]} 36. Re7+
{[%clk 0:01:55.9]} 36... Kd5 {[%clk 0:01:23.5]} 37. Nf6+ {[%clk 0:01:12.1]}
37... Kd6 {[%clk 0:01:20.6]} 38. Ne8+ {[%clk 0:01:12]} 38... Kd5 {[%clk
0:01:18.5]} 39. Rc7 {[%clk 0:00:59.2]} 39... Rxe8 {[%clk 0:01:15.6]} 40. c3
{[%clk 0:00:54.3]} 40... Nc4 {[%clk 0:01:11.2]} 41. Rd7+ {[%clk 0:00:50.3]}
41... Kc6 {[%clk 0:01:11.1]} 42. Rg7 {[%clk 0:00:50.8]} 42... Nxa3 {[%clk
0:00:40.2]} 43. Rxg6+ {[%clk 0:00:47.4]} 43... Kd5 {[%clk 0:00:41.2]} 44. Rxa6
{[%clk 0:00:43.5]} 44... Nc4 {[%clk 0:00:42.2]} 45. cxd4 {[%clk 0:00:42.8]}
45... exd4+ {[%clk 0:00:42.5]} 46. Kd3 {[%clk 0:00:43.9]} 46... Rg8 {[%clk
0:00:40.8]} 47. f4 {[%clk 0:00:44.7]} 47... Re8 {[%clk 0:00:36.8]} 48. f5 {[%clk
0:00:43.5]} 48... Rg8 {[%clk 0:00:36.6]} 49. Rg6 {[%clk 0:00:39.7]} 49... Ne5+
{[%clk 0:00:37.3]} 0-1

[Event "***Titled Tuesday 3|2 Blitz"]
[Site "Chess.com"]
[Date "2017.02.07"]
[Round "8"]
[White "hansen"]
[Black "GrigorGrigorov"]
[Result "1-0"]
[WhiteElo "2641"]
[BlackElo "2497"]
[TimeControl "180+2"]
[EndTime "14:57:13 PST"]
[Termination "hansen won on time"]

1. e4 {[%clk 0:02:58.5]} 1... g6 {[%clk 0:03:00.5]} 2. d4 {[%clk 0:02:58.8]}
2... Bg7 {[%clk 0:03:01.7]} 3. Nc3 {[%clk 0:03:00.2]} 3... c6 {[%clk 0:03:02.4]}
4. f4 {[%clk 0:02:58.1]} 4... d5 {[%clk 0:03:03]} 5. e5 {[%clk 0:02:58]} 5...
Nh6 {[%clk 0:03:04]} 6. Nf3 {[%clk 0:02:58.6]} 6... f6 {[%clk 0:03:04.8]} 7. Be3
{[%clk 0:02:57.4]} 7... Bg4 {[%clk 0:03:05.1]} 8. h3 {[%clk 0:02:53.9]} 8...
Bxf3 {[%clk 0:03:05.2]} 9. Qxf3 {[%clk 0:02:55.8]} 9... O-O {[%clk 0:03:05.7]}
10. Qe2 {[%clk 0:02:41.7]} 10... Nf5 {[%clk 0:02:58.9]} 11. Bf2 {[%clk
0:02:38.9]} 11... fxe5 {[%clk 0:02:44.4]} 12. fxe5 {[%clk 0:02:23.9]} 12... e6
{[%clk 0:02:43.7]} 13. g4 {[%clk 0:02:21.3]} 13... Nh4 {[%clk 0:02:39.8]} 14.
O-O-O {[%clk 0:02:19.6]} 14... c5 {[%clk 0:02:33.9]} 15. dxc5 {[%clk 0:02:14.7]}
15... Nc6 {[%clk 0:02:35]} 16. Bg3 {[%clk 0:02:10.3]} 16... Nxe5 {[%clk
0:02:26.9]} 17. Kb1 {[%clk 0:02:05.9]} 17... Qg5 {[%clk 0:02:17.3]} 18. Nb5
{[%clk 0:02:01.6]} 18... Rf3 {[%clk 0:02:02.2]} 19. Bxh4 {[%clk 0:01:18]} 19...
Qxh4 {[%clk 0:02:01.2]} 20. Nd4 {[%clk 0:01:12.8]} 20... Rf2 {[%clk 0:01:44.4]}
21. Qb5 {[%clk 0:01:13.6]} 21... Qe7 {[%clk 0:01:34.3]} 22. g5 {[%clk
0:00:52.7]} 22... Rc8 {[%clk 0:01:27.5]} 23. Nb3 {[%clk 0:00:45.6]} 23... b6
{[%clk 0:01:17.5]} 24. Qa6 {[%clk 0:00:31.9]} 24... Rc7 {[%clk 0:01:13.5]} 25.
Bb5 {[%clk 0:00:23.8]} 25... bxc5 {[%clk 0:00:47.8]} 26. Rhf1 {[%clk 0:00:24.3]}
26... Rf5 {[%clk 0:00:35.2]} 27. h4 {[%clk 0:00:24.9]} 27... Nf3 {[%clk
0:00:26.4]} 28. Rh1 {[%clk 0:00:16.6]} 28... c4 {[%clk 0:00:23.3]} 29. Nd2
{[%clk 0:00:17.3]} 29... Nxd2+ {[%clk 0:00:21.8]} 30. Rxd2 {[%clk 0:00:19.2]}
30... Qb4 {[%clk 0:00:20.8]} 31. c3 {[%clk 0:00:20.3]} 31... Bxc3 {[%clk
0:00:18.5]} 32. Re2 {[%clk 0:00:21.6]} 32... Be5 {[%clk 0:00:08.4]} 33. Qxe6+
{[%clk 0:00:21]} 33... Rcf7 {[%clk 0:00:08.9]} 34. Be8 {[%clk 0:00:20.6]} 34...
Bg7 {[%clk 0:00:05.8]} 35. Bxf7+ {[%clk 0:00:19.6]} 35... Rxf7 {[%clk
0:00:07.7]} 36. Rf1 {[%clk 0:00:19.5]} 36... Qf8 {[%clk 0:00:07.7]} 37. Qxd5
{[%clk 0:00:20]} 1-0

[Event "***Titled Tuesday 3|2 Blitz"]
[Site "Chess.com"]
[Date "2017.02.07"]
[Round "8"]
[White "GeorgMeier"]
[Black "GMHess"]
[Result "1-0"]
[WhiteElo "2677"]
[BlackElo "2587"]
[TimeControl "180+2"]
[EndTime "14:57:32 PST"]
[Termination "GeorgMeier won by checkmate"]

1. Nf3 {[%clk 0:03:02]} 1... d5 {[%clk 0:02:58.6]} 2. g3 {[%clk 0:02:54.2]} 2...
Nf6 {[%clk 0:02:50.1]} 3. Bg2 {[%clk 0:02:55.3]} 3... c6 {[%clk 0:02:51.2]} 4.
O-O {[%clk 0:02:56.4]} 4... h6 {[%clk 0:02:47.8]} 5. c4 {[%clk 0:02:45.2]} 5...
dxc4 {[%clk 0:02:25.7]} 6. Na3 {[%clk 0:02:38.1]} 6... Be6 {[%clk 0:02:26.7]} 7.
b3 {[%clk 0:02:37.7]} 7... cxb3 {[%clk 0:02:23.3]} 8. axb3 {[%clk 0:02:39.6]}
8... Na6 {[%clk 0:01:53.7]} 9. Bb2 {[%clk 0:02:34.3]} 9... Nc5 {[%clk
0:01:53.7]} 10. Nc4 {[%clk 0:02:35.4]} 10... Bd5 {[%clk 0:01:45.2]} 11. d3
{[%clk 0:02:33.8]} 11... e6 {[%clk 0:01:32]} 12. Qc2 {[%clk 0:02:04.3]} 12...
Be7 {[%clk 0:01:13.7]} 13. Rfd1 {[%clk 0:02:04.8]} 13... O-O {[%clk 0:01:10.2]}
14. e4 {[%clk 0:02:06]} 14... Bxc4 {[%clk 0:01:11.1]} 15. bxc4 {[%clk
0:02:07.5]} 15... a5 {[%clk 0:01:04.6]} 16. e5 {[%clk 0:02:08.1]} 16... Nfd7
{[%clk 0:00:57.6]} 17. d4 {[%clk 0:01:26.1]} 17... Na6 {[%clk 0:00:58.2]} 18.
Qe4 {[%clk 0:01:21.3]} 18... Nb4 {[%clk 0:00:53.6]} 19. Ne1 {[%clk 0:01:11.1]}
19... Nb6 {[%clk 0:00:42.8]} 20. Rac1 {[%clk 0:00:51.5]} 20... Na4 {[%clk
0:00:34.9]} 21. Ba1 {[%clk 0:00:51.4]} 21... Qd7 {[%clk 0:00:31.7]} 22. Nd3
{[%clk 0:00:51.3]} 22... Nxd3 {[%clk 0:00:26.7]} 23. Rxd3 {[%clk 0:00:40.1]}
23... Rfd8 {[%clk 0:00:26]} 24. Rcd1 {[%clk 0:00:27.3]} 24... Rac8 {[%clk
0:00:21.8]} 25. Qg4 {[%clk 0:00:21]} 25... b5 {[%clk 0:00:20.8]} 26. c5 {[%clk
0:00:20.8]} 26... f5 {[%clk 0:00:15]} 27. exf6 {[%clk 0:00:19.4]} 27... Bxf6
{[%clk 0:00:16]} 28. Be4 {[%clk 0:00:17.4]} 28... Qf7 {[%clk 0:00:12]} 29. Bg6
{[%clk 0:00:15.7]} 29... Qd7 {[%clk 0:00:10.3]} 30. Be4 {[%clk 0:00:16.7]} 30...
Qf7 {[%clk 0:00:10.9]} 31. Qf3 {[%clk 0:00:15.5]} 31... Qd7 {[%clk 0:00:09.3]}
32. h4 {[%clk 0:00:15]} 32... b4 {[%clk 0:00:09.8]} 33. Qg4 {[%clk 0:00:15.4]}
33... Nc3 {[%clk 0:00:10.7]} 34. Bxc3 {[%clk 0:00:15.9]} 34... bxc3 {[%clk
0:00:12.6]} 35. Rxc3 {[%clk 0:00:15.5]} 35... e5 {[%clk 0:00:11]} 36. Bf5 {[%clk
0:00:12.8]} 36... Qxd4 {[%clk 0:00:09.3]} 37. Rxd4 {[%clk 0:00:12.7]} 37... exd4
{[%clk 0:00:11.2]} 38. Ra3 {[%clk 0:00:12.2]} 38... Rb8 {[%clk 0:00:10.8]} 39.
Qg6 {[%clk 0:00:11.2]} 39... Rb5 {[%clk 0:00:10.5]} 40. Be6+ {[%clk 0:00:09.8]}
40... Kh8 {[%clk 0:00:11.7]} 41. Rf3 {[%clk 0:00:10.8]} 41... Rf8 {[%clk
0:00:09.3]} 42. Bf5 {[%clk 0:00:11.3]} 42... Kg8 {[%clk 0:00:09.6]} 43. g4
{[%clk 0:00:11.7]} 43... Rxc5 {[%clk 0:00:10.5]} 44. g5 {[%clk 0:00:13.2]} 44...
hxg5 {[%clk 0:00:08.3]} 45. Be6+ {[%clk 0:00:14.5]} 45... Kh8 {[%clk 0:00:08.3]}
46. Qh5# {[%clk 0:00:15.8]} 1-0

[Event "***Titled Tuesday 3|2 Blitz"]
[Site "Chess.com"]
[Date "2017.02.07"]
[Round "8"]
[White "Sebastian"]
[Black "SergeiAza"]
[Result "0-1"]
[WhiteElo "2659"]
[BlackElo "2525"]
[TimeControl "180+2"]
[EndTime "14:57:32 PST"]
[Termination "SergeiAza won by checkmate"]

1. e4 {[%clk 0:03:02]} 1... e5 {[%clk 0:02:59.3]} 2. Nf3 {[%clk 0:03:02.8]} 2...
Nc6 {[%clk 0:03:00.8]} 3. d4 {[%clk 0:02:57.9]} 3... exd4 {[%clk 0:03:00.8]} 4.
Nxd4 {[%clk 0:02:59.6]} 4... Bc5 {[%clk 0:03:02.3]} 5. Nb3 {[%clk 0:03:00.1]}
5... Bb6 {[%clk 0:03:02.8]} 6. Nc3 {[%clk 0:03:01.7]} 6... Nf6 {[%clk
0:03:00.7]} 7. Bg5 {[%clk 0:03:01.4]} 7... h6 {[%clk 0:02:54.5]} 8. Bh4 {[%clk
0:03:02.1]} 8... O-O {[%clk 0:02:49.2]} 9. Qe2 {[%clk 0:02:55.9]} 9... Nd4
{[%clk 0:02:37.8]} 10. Qd2 {[%clk 0:02:56.6]} 10... Nxb3 {[%clk 0:02:36.2]} 11.
axb3 {[%clk 0:02:49.2]} 11... Nxe4 {[%clk 0:02:24]} 12. Qf4 {[%clk 0:02:25.1]}
12... Qe8 {[%clk 0:02:15.8]} 13. O-O-O {[%clk 0:01:39.8]} 13... Nxc3 {[%clk
0:02:10.6]} 14. bxc3 {[%clk 0:01:40.3]} 14... d6 {[%clk 0:02:09.4]} 15. Bd3
{[%clk 0:01:38.8]} 15... Qe5 {[%clk 0:02:06.4]} 16. Qf3 {[%clk 0:01:24.1]} 16...
Kh8 {[%clk 0:01:43.5]} 17. Kb2 {[%clk 0:01:10.5]} 17... Ba5 {[%clk 0:01:35]} 18.
Bc4 {[%clk 0:01:11.1]} 18... Be6 {[%clk 0:01:27.6]} 19. Rhe1 {[%clk 0:01:10.2]}
19... Qc5 {[%clk 0:01:24.1]} 20. Re4 {[%clk 0:01:00.4]} 20... d5 {[%clk
0:01:13.6]} 21. Re5 {[%clk 0:01:01]} 21... c6 {[%clk 0:00:58.1]} 22. Bf6 {[%clk
0:00:55.7]} 22... Bd8 {[%clk 0:00:58.9]} 23. Bxg7+ {[%clk 0:00:38.1]} 23... Kxg7
{[%clk 0:00:59.7]} 24. Qg3+ {[%clk 0:00:39.8]} 24... Kf6 {[%clk 0:00:32.6]} 25.
Rde1 {[%clk 0:00:40.2]} 25... Ke7 {[%clk 0:00:30.1]} 26. Qg7 {[%clk 0:00:39.8]}
26... Kd7 {[%clk 0:00:14.4]} 27. Rxe6 {[%clk 0:00:33.5]} 27... dxc4 {[%clk
0:00:14.8]} 28. b4 {[%clk 0:00:34.9]} 28... Qg5 {[%clk 0:00:11.9]} 29. Qxf8
{[%clk 0:00:27.4]} 29... fxe6 {[%clk 0:00:11.8]} 30. Rd1+ {[%clk 0:00:29.1]}
30... Kc8 {[%clk 0:00:09.4]} 31. f4 {[%clk 0:00:21]} 31... Qe7 {[%clk
0:00:10.8]} 32. Qxh6 {[%clk 0:00:22.3]} 32... a5 {[%clk 0:00:12.3]} 33. b5
{[%clk 0:00:21.9]} 33... cxb5 {[%clk 0:00:11.1]} 34. Qh5 {[%clk 0:00:23]} 34...
b4 {[%clk 0:00:11.5]} 35. f5 {[%clk 0:00:22.7]} 35... bxc3+ {[%clk 0:00:12.3]}
36. Ka2 {[%clk 0:00:24.2]} 36... Ra6 {[%clk 0:00:11.9]} 37. fxe6 {[%clk
0:00:22.2]} 37... Rb6 {[%clk 0:00:13.4]} 38. Rxd8+ {[%clk 0:00:08.7]} 38... Kxd8
{[%clk 0:00:12]} 39. Qh8+ {[%clk 0:00:09.9]} 39... Kc7 {[%clk 0:00:12.5]} 40.
Qe5+ {[%clk 0:00:10.6]} 40... Qd6 {[%clk 0:00:11.8]} 41. Qxc3 {[%clk 0:00:11.6]}
41... Qb4 {[%clk 0:00:11.5]} 42. Qe5+ {[%clk 0:00:12.1]} 42... Kc6 {[%clk
0:00:10.1]} 43. e7 {[%clk 0:00:13.1]} 43... Qa4# {[%clk 0:00:08.8]} 0-1

[Event "***Titled Tuesday 3|2 Blitz"]
[Site "Chess.com"]
[Date "2017.02.07"]
[Round "8"]
[White "Aguiar94"]
[Black "BilodeauA"]
[Result "0-1"]
[WhiteElo "2460"]
[BlackElo "2601"]
[TimeControl "180+2"]
[EndTime "14:57:35 PST"]
[Termination "BilodeauA won by resignation"]

1. e4 {[%clk 0:03:02]} 1... c5 {[%clk 0:02:59.9]} 2. Nf3 {[%clk 0:03:03.4]} 2...
Nc6 {[%clk 0:03:01]} 3. Nc3 {[%clk 0:03:03.8]} 3... Nf6 {[%clk 0:03:01.4]} 4. e5
{[%clk 0:03:04.7]} 4... Ng4 {[%clk 0:03:01.5]} 5. Qe2 {[%clk 0:03:06.1]} 5...
Qc7 {[%clk 0:03:01.4]} 6. Nd5 {[%clk 0:03:07.6]} 6... Qb8 {[%clk 0:03:00.8]} 7.
d4 {[%clk 0:03:09.2]} 7... cxd4 {[%clk 0:02:56.4]} 8. Bf4 {[%clk 0:03:10.5]}
8... e6 {[%clk 0:02:51.4]} 9. h3 {[%clk 0:03:12]} 9... Nh6 {[%clk 0:02:47.8]}
10. Bxh6 {[%clk 0:03:13.6]} 10... gxh6 {[%clk 0:02:48.9]} 11. Nf6+ {[%clk
0:03:14.1]} 11... Kd8 {[%clk 0:02:47.9]} 12. O-O-O {[%clk 0:03:15.5]} 12... Be7
{[%clk 0:02:46.3]} 13. Qe4 {[%clk 0:03:09.7]} 13... d5 {[%clk 0:02:40.7]} 14.
Qf4 {[%clk 0:03:04.8]} 14... Qc7 {[%clk 0:02:32.6]} 15. Re1 {[%clk 0:02:35.4]}
15... Bd7 {[%clk 0:02:21.8]} 16. Qxh6 {[%clk 0:02:34.6]} 16... Nb4 {[%clk
0:02:10.6]} 17. Nxd4 {[%clk 0:02:26]} 17... Rc8 {[%clk 0:02:10.2]} 18. Qg7
{[%clk 0:01:54.9]} 18... Rf8 {[%clk 0:01:54.4]} 19. Kb1 {[%clk 0:01:16.3]} 19...
Nxc2 {[%clk 0:01:49.9]} 20. Bb5 {[%clk 0:01:08.9]} 20... Bxb5 {[%clk 0:00:52.2]}
21. Nxb5 {[%clk 0:01:03.6]} 21... Qc4 {[%clk 0:00:45.3]} 22. Rc1 {[%clk
0:00:54.7]} 22... Qd3 {[%clk 0:00:38.1]} 23. Qxh7 {[%clk 0:00:47.6]} 23... Na3+
{[%clk 0:00:28.2]} 24. Ka1 {[%clk 0:00:49]} 24... Rxc1+ {[%clk 0:00:29.6]} 25.
Rxc1 {[%clk 0:00:49.6]} 25... Qxh7 {[%clk 0:00:31]} 26. Nxh7 {[%clk 0:00:49.9]}
26... Nxb5 {[%clk 0:00:32.7]} 27. Nxf8 {[%clk 0:00:51.4]} 27... Bxf8 {[%clk
0:00:34.6]} 28. h4 {[%clk 0:00:39]} 28... Nd4 {[%clk 0:00:35.6]} 29. h5 {[%clk
0:00:35.4]} 29... Bh6 {[%clk 0:00:36.7]} 30. Rd1 {[%clk 0:00:33.2]} 30... Nc6
{[%clk 0:00:37.8]} 31. Re1 {[%clk 0:00:32.7]} 31... d4 {[%clk 0:00:39.3]} 32.
Rd1 {[%clk 0:00:24.4]} 32... Ke7 {[%clk 0:00:40]} 33. g3 {[%clk 0:00:24.2]}
33... f6 {[%clk 0:00:41.5]} 34. exf6+ {[%clk 0:00:23.6]} 34... Kxf6 {[%clk
0:00:43.4]} 35. f4 {[%clk 0:00:23.5]} 35... Kf5 {[%clk 0:00:44.6]} 36. Re1
{[%clk 0:00:20.2]} 36... e5 {[%clk 0:00:44.1]} 37. fxe5 {[%clk 0:00:20.7]} 37...
Nxe5 {[%clk 0:00:45.7]} 38. Kb1 {[%clk 0:00:20.5]} 38... d3 {[%clk 0:00:46.3]}
39. Rf1+ {[%clk 0:00:16.7]} 39... Ke4 {[%clk 0:00:34.8]} 40. b3 {[%clk 0:00:18]}
40... Ng4 {[%clk 0:00:33.6]} 41. Rf7 {[%clk 0:00:17.9]} 41... Ke3 {[%clk
0:00:28.2]} 42. Re7+ {[%clk 0:00:16.5]} 42... Kf2 {[%clk 0:00:28.3]} 43. Rxb7
{[%clk 0:00:17.8]} 43... d2 {[%clk 0:00:29.8]} 44. Rd7 {[%clk 0:00:18.5]} 44...
Ke2 {[%clk 0:00:29.9]} 45. b4 {[%clk 0:00:17.7]} 45... d1=Q+ {[%clk 0:00:30.4]}
46. Rxd1 {[%clk 0:00:19.2]} 46... Kxd1 {[%clk 0:00:32.3]} 47. b5 {[%clk
0:00:19]} 47... Bg7 {[%clk 0:00:31.7]} 48. a4 {[%clk 0:00:19.7]} 48... Bc3
{[%clk 0:00:32.7]} 0-1

[Event "***Titled Tuesday 3|2 Blitz"]
[Site "Chess.com"]
[Date "2017.02.07"]
[Round "8"]
[White "kikydu96"]
[Black "wnstop"]
[Result "0-1"]
[WhiteElo "2333"]
[BlackElo "2419"]
[TimeControl "180+2"]
[EndTime "14:57:38 PST"]
[Termination "wnstop won by resignation"]

1. e4 {[%clk 0:03:02]} 1... c5 {[%clk 0:03:00.8]} 2. Nf3 {[%clk 0:02:59]} 2...
Nc6 {[%clk 0:03:00.7]} 3. Nc3 {[%clk 0:02:58.6]} 3... e5 {[%clk 0:03:01.1]} 4.
Bc4 {[%clk 0:02:57.8]} 4... Be7 {[%clk 0:03:00.2]} 5. O-O {[%clk 0:02:55.3]}
5... d6 {[%clk 0:03:00.7]} 6. d3 {[%clk 0:02:53.9]} 6... Nf6 {[%clk 0:03:00.9]}
7. h3 {[%clk 0:02:45.6]} 7... O-O {[%clk 0:03:01.1]} 8. Nd5 {[%clk 0:02:43.7]}
8... Kh8 {[%clk 0:02:57.9]} 9. c3 {[%clk 0:02:44.5]} 9... Ng8 {[%clk 0:02:58]}
10. d4 {[%clk 0:02:44.7]} 10... cxd4 {[%clk 0:02:54.3]} 11. cxd4 {[%clk
0:02:45]} 11... f5 {[%clk 0:02:55.8]} 12. dxe5 {[%clk 0:02:21.1]} 12... fxe4
{[%clk 0:02:54.9]} 13. exd6 {[%clk 0:02:22.1]} 13... Bxd6 {[%clk 0:02:53.2]} 14.
Ng5 {[%clk 0:02:19.4]} 14... Ne5 {[%clk 0:02:52]} 15. Bb3 {[%clk 0:01:58.4]}
15... Bf5 {[%clk 0:02:29.6]} 16. Qd4 {[%clk 0:01:50.2]} 16... Nc6 {[%clk
0:02:19.9]} 17. Qd1 {[%clk 0:01:17]} 17... h6 {[%clk 0:02:04.9]} 18. Qh5 {[%clk
0:01:16.6]} 18... Qe8 {[%clk 0:02:05.9]} 19. Qh4 {[%clk 0:01:02.9]} 19... Qg6
{[%clk 0:02:04.6]} 20. f3 {[%clk 0:00:50.6]} 20... exf3 {[%clk 0:01:52.5]} 21.
Nxf3 {[%clk 0:00:50]} 21... Be4 {[%clk 0:01:44.1]} 22. Nf4 {[%clk 0:00:47.7]}
22... Qf5 {[%clk 0:01:31.7]} 23. Be6 {[%clk 0:00:44.1]} 23... Qc5+ {[%clk
0:01:31]} 24. Kh1 {[%clk 0:00:43.9]} 24... Bxf4 {[%clk 0:01:13.1]} 25. Bxf4
{[%clk 0:00:44.8]} 25... Bxf3 {[%clk 0:01:13.7]} 26. Rxf3 {[%clk 0:00:46.1]}
26... Nd4 {[%clk 0:01:14.8]} 27. Rc3 {[%clk 0:00:32.5]} 27... Rxf4 {[%clk
0:01:07.2]} 28. Qxf4 {[%clk 0:00:20.5]} 28... Nxe6 {[%clk 0:01:07.5]} 29. Qf7
{[%clk 0:00:19.8]} 29... Qb6 {[%clk 0:00:59.9]} 30. Re1 {[%clk 0:00:19.4]} 30...
Ng5 {[%clk 0:00:47.8]} 31. Qd7 {[%clk 0:00:14.6]} 31... Nf6 {[%clk 0:00:45.2]}
32. Qf5 {[%clk 0:00:14.3]} 32... Rf8 {[%clk 0:00:35.3]} 33. h4 {[%clk
0:00:13.9]} 33... Ngh7 {[%clk 0:00:30.3]} 34. Rb3 {[%clk 0:00:12.6]} 34... Qa6
{[%clk 0:00:30.6]} 35. Re6 {[%clk 0:00:12.6]} 35... Qxa2 {[%clk 0:00:28.4]} 36.
Rxb7 {[%clk 0:00:13.5]} 36... Qa1+ {[%clk 0:00:29.5]} 37. Kh2 {[%clk 0:00:14.1]}
37... Qd1 {[%clk 0:00:30.8]} 38. Qg6 {[%clk 0:00:12.4]} 38... Qg4 {[%clk
0:00:31.6]} 39. Rxg7 {[%clk 0:00:08.4]} 39... Qxh4+ {[%clk 0:00:32]} 40. Kg1
{[%clk 0:00:08.7]} 40... Rd8 {[%clk 0:00:29.7]} 41. Rxf6 {[%clk 0:00:03]} 41...
Nxf6 {[%clk 0:00:29.7]} 42. Qg3 {[%clk 0:00:02]} 42... Rd1+ {[%clk 0:00:29.6]}
43. Kf2 {[%clk 0:00:02.8]} 43... Ne4+ {[%clk 0:00:30.7]} 0-1